[Event "15th Arad Open 2022"]
[Site "Arad"]
[Date "2022.08.11"]
[Round "5.17"]
[White "Coicev, Matei-Andrei"]
[Black "Muranyi, Erich"]
[Result "1-0"]
[ECO "C06"]
[WhiteElo "2087"]
[BlackElo "1867"]
[Annotator "TA"]
[PlyCount "55"]
[EventDate "2022.08.08"]
[EventType "swiss"]
[EventCountry "ROU"]
[SourceTitle "playchess.com"]
[Source "ChessBase"]
[SourceQuality "1"]
[TimeControl "5400+30"]

{[%evp 24,55,31,0,22,45,59,39,121,110,107,106,108,66,87,72,201,199,199,193,418,400,378,316,287,294,468,472,446,350,29992,29993,29995,29996]} 1. e4 {[%emt 0:00:29]} e6 {[%emt 0:00:21]} 2. d4 {[%emt 0:00:41]} d5 {[%emt 0:00:06]} 3. Nd2 {[%emt 0:00:50]} Nf6 {[%emt 0:00:19]} 4. e5 {[%emt 0:00:50]} Nfd7 {[%emt 0:00:08]} 5. Bd3 {[%emt 0:00:32]} c5 {[%emt 0:00:08]} 6. c3 {[%emt 0:01:16]} Nc6 {[%emt 0:00:13]} 7. Ne2 {[%emt 0:01:14]} Qb6 {[%emt 0:00:15]} 8. Nf3 {[%emt 0:00:54]} cxd4 {[%emt 0:00:11]} 9. cxd4 {[%emt 0:00:33]} f6 {[%emt 0:00:08]} 10. exf6 {[%emt 0:02:57]} Nxf6 {[%emt 0:00:11]} 11. O-O {[%emt 0:02:09]} Bd6 {[%emt 0:07:59]} 12. a3 {[%emt 0:02:19]} O-O {[%emt 0:02:38]} 13. b4 {[%emt 0:01:07]} Bd7 {[%emt 0:04:17] C06: French Tarrasch: 3...Nf6 4 e5 Nfd7 5 Bd3 main lines.} (13... e5 $5 {[%cal Re5e4]} 14. Qb3 Be6 15. dxe5 Nxe5 $11) 14. Bb2 {[%emt 0:03:37] [#]} Nh5 $146 {[%emt 0:29:35][%cal Of8f3]} ({Predecessor:} 14... Rae8 15. Ng3 e5 16. b5 e4 17. bxc6 Bxc6 18. Rb1 exd3 19. Re1 Rxe1+ 20. Nxe1 Ne4 21. Nxd3 Bxg3 22. hxg3 {0-1 (104) Arunakirinathan,A (1509)-Aguilar Samper,V (2002) Tornelo INT 2021}) 15. Ne5 $1 {[%emt 0:03:09]} Nxe5 {[%emt 0:12:10]} ({Better is} 15... Be8 $14) 16. dxe5 $16 {[%emt 0:00:18] [#] Black must now prevent Bd4.} Be7 {[%emt 0:00:18]} 17. Bd4 {[%emt 0:00:51]} Qd8 {[%emt 0:01:01]} 18. Rc1 {[%emt 0:01:17] White is more active.} Bg5 {[%emt 0:01:58]} 19. Rc3 {[%emt 0:02:49] aiming for Qc2.} Rc8 {[%emt 0:05:03] [#] Loses the game.} (19... Nf4 $16) 20. Rxc8 $1 $18 {[%emt 0:00:55]} ({Don't take} 20. Bxa7 $6 Rxc3 21. Nxc3 Nf4 $16) 20... Bxc8 {[%emt 0:01:00]} 21. Qc2 {[%emt 0:00:41]} b6 $2 {[%emt 0:10:30]} (21... g6 {was worth a try.} 22. Bxa7 Nf4 23. Nxf4 Bxf4) 22. Bxh7+ {[%emt 0:02:31]} Kh8 {[%emt 0:00:13]} 23. Bg6 {[%emt 0:00:34]} Nf4 {[%emt 0:00:21]} 24. Nxf4 {[%emt 0:00:50]} Rxf4 {[%emt 0:02:16]} (24... Bxf4 {is a better defense.} 25. Qe2 Bh6) 25. Be3 {[%emt 0:01:23]} Rc4 {[%emt 0:00:23]} 26. Qe2 {[%emt 0:02:02] And now Qh5+ would win.} Bxe3 $2 {[%emt 0:01:24]} (26... Bh6 $18 27. Bd3 Rc3) 27. fxe3 {[%emt 0:00:35]} Rh4 {[%emt 0:02:11]} 28. Qf2 {[%emt 0:00:08] Weighted Error Value: White=0.17 (very precise) /Black=1.01} 1-0

[Event "15th Arad Open 2022"]
[Site "Arad"]
[Date "2022.08.11"]
[Round "5.18"]
[White "Ambru, Dan-Calin"]
[Black "Kiraly, Lilla Virag"]
[Result "1-0"]
[ECO "E49"]
[WhiteElo "2001"]
[BlackElo "1787"]
[Annotator "TA"]
[PlyCount "89"]
[EventDate "2022.08.08"]
[EventType "swiss"]
[EventCountry "ROU"]
[SourceTitle "playchess.com"]
[Source "ChessBase"]
[SourceQuality "1"]
[TimeControl "5400+30"]

{[%evp 16,89,19,3,20,0,4,0,-7,0,0,-35,-11,-11,39,27,115,113,112,113,124,127,103,91,232,171,159,164,178,180,206,195,196,203,196,187,190,185,214,127,283,263,303,235,436,422,391,380,565,554,1036,845,2885,762,731,756,1544,1190,1752,1582,2311,1959,29971,29972,29980,29981,29985,29986,29986,29987,29987,29985,29985,29986,29973,2976]} 1. d4 {[%emt 0:15:14]} Nf6 {[%emt 0:00:33]} 2. c4 {[%emt 0:00:14]} e6 {[%emt 0:00:13]} 3. Nc3 {[%emt 0:00:06]} Bb4 {[%emt 0:00:18]} 4. e3 {[%emt 0:00:05]} O-O {[%emt 0:01:09]} 5. Bd3 {[%emt 0:00:05]} d5 {[%emt 0:00:55]} 6. Nge2 {[%emt 0:00:07]} c5 {[%emt 0:03:32]} 7. a3 {[%emt 0:00:25]} Bxc3+ {[%emt 0:01:50]} 8. bxc3 {[%emt 0:00:07]} Nc6 {[%emt 0:02:35]} 9. O-O {[%emt 0:03:03]} (9. dxc5 dxc4 10. Bc2 Qxd1+ 11. Bxd1 Ne4 $17) 9... b6 {[%emt 0:05:28] E49: Nimzo-Indian: Rubinstein: 5 Bd3 d5 6 a3 Bxc3+ 7 bxc3.} 10. Bb2 {[%emt 0:04:27]} Na5 {[%emt 0:08:42]} 11. cxd5 {[%emt 0:11:07]} exd5 {[%emt 0:05:16] [#] The position is equal.} 12. dxc5 $146 {[%emt 0:04:44]} ({Predecessor:} 12. Ng3 Bd7 13. Re1 cxd4 14. cxd4 Rc8 15. f3 Nc4 16. Bc1 Re8 17. e4 dxe4 18. fxe4 {0-1 (26) Ouellet,M (2079)-Metpally,J (2140) Chess.com INT 2019}) 12... bxc5 {[%emt 0:03:11]} 13. a4 {[%emt 0:01:20]} Re8 {[%emt 0:05:32]} 14. Bb5 {[%emt 0:20:25]} Bd7 {[%emt 0:11:35]} ({Black should play} 14... Re7 $11) 15. c4 $14 {[%emt 0:11:31]} Bxb5 {[%emt 0:09:35]} (15... d4 $1 $11 {keeps the balance.}) 16. Bxf6 $16 {[%emt 0:00:29]} Qxf6 {[%emt 0:02:05]} 17. axb5 {[%emt 0:00:43][%mdl 64] [#] Discovered Attack} Qb6 {[%emt 0:09:03]} 18. cxd5 {[%emt 0:06:01]} ({Don't do} 18. Qxd5 $6 Rad8 19. Qf5 Nxc4 $11) 18... Qxb5 {[%emt 0:03:35]} 19. Qc2 {[%emt 0:01:10] And now Rfb1 would win.} Rad8 {[%emt 0:05:36]} (19... Nb3 $16 {keeps fighting.}) 20. Nc3 {[%emt 0:08:30]} Qb3 {[%emt 0:08:46]} 21. Qxb3 {[%emt 0:00:15]} Nxb3 {[%emt 0:00:14]} 22. Rxa7 {[%emt 0:00:11]} Nd2 {[%emt 0:00:12]} 23. Rd1 {[%emt 0:01:39]} Ne4 {[%emt 0:01:57]} 24. Nxe4 {[%emt 0:03:00]} Rxe4 $18 {[%emt 0:00:38][%mdl 4096] Endgame KRR-KRR} 25. Rc7 {[%emt 0:00:08]} Rc4 {[%emt 0:00:41]} 26. f3 {[%emt 0:02:23][%cal Bf2f3,Bf3f4][%mdl 32]} Rc2 {[%emt 0:06:00]} 27. d6 {[%emt 0:03:54]} (27. h4 $18) 27... Kf8 $2 {[%emt 0:01:01]} (27... c4 $16 28. e4 f6) 28. e4 {[%emt 0:01:32][%cal Be3e4,Be4e5][%mdl 32]} c4 {[%emt 0:00:59]} 29. e5 {[%emt 0:00:05]} c3 $2 {[%emt 0:01:08]} (29... g5 30. Rb1 Kg8) 30. Ra1 {[%emt 0:00:55] [#] Black must now prevent Raa7.} Re2 {[%emt 0:02:31]} 31. f4 {[%emt 0:00:55] Hoping for Raa7.} c2 {[%emt 0:00:20]} (31... g5 $142 32. Raa7 (32. Rxc3 gxf4 33. Rd1 Rxe5 $16) (32. fxg5 Rxe5 33. Rd1 Rxg5 $16) 32... gxf4 33. Rxf7+ Kg8 34. Rg7+ (34. Rxh7 Rxe5 35. Rag7+ Kf8 $16) (34. Rxf4 c2 $16) 34... Kh8 35. Rxh7+ Kg8 36. Rag7+ Kf8) 32. Rc1 {[%emt 0:00:38]} f6 {[%emt 0:00:35]} 33. R1xc2 {[%emt 0:00:34]} Re4 {[%emt 0:00:33]} 34. R7c4 {[%emt 0:00:20]} (34. Rc8 $142 Rxc8 35. Rxc8+ Kf7 36. d7) 34... Rxc4 {[%emt 0:00:35]} 35. Rxc4 {[%emt 0:00:06] KR-KR} Kf7 {[%emt 0:00:24]} 36. Rc7+ {[%emt 0:00:54]} Ke6 {[%emt 0:00:30]} 37. Re7+ {[%emt 0:00:06]} Kf5 {[%emt 0:00:27]} 38. d7 {[%emt 0:01:00]} fxe5 {[%emt 0:00:37]} 39. fxe5 {[%emt 0:00:06] White mates.} Kg6 {[%emt 0:00:29]} 40. e6 {[%emt 0:00:00]} Ra8 {[%emt 0:00:00]} 41. Re8 {[%emt 0:00:00]} Ra1+ {[%emt 0:00:00]} 42. Kf2 {[%emt 0:00:00]} Ra2+ {[%emt 0:00:00]} 43. Ke3 {[%emt 0:00:00]} Ra3+ {[%emt 0:00:00]} 44. Kd2 {[%emt 0:00:00]} Ra2+ {[%emt 0:00:00]} 45. Kc3 {[%emt 0:00:00] Weighted Error Value: White=0.12 (very precise) /Black=0.75} 1-0

[Event "15th Arad Open 2022"]
[Site "Arad"]
[Date "2022.08.11"]
[Round "5.19"]
[White "Sida, Flavia-Maria"]
[Black "Ungureanu, Sandu"]
[Result "0-1"]
[ECO "D02"]
[WhiteElo "1392"]
[BlackElo "2011"]
[Annotator "TA"]
[PlyCount "59"]
[EventDate "2022.08.08"]
[EventType "swiss"]
[EventCountry "ROU"]
[SourceTitle "playchess.com"]
[Source "ChessBase"]
[SourceQuality "1"]
[TimeControl "5400+30"]

{[%evp 9,59,0,37,0,62,65,90,20,17,8,-5,-37,-21,-62,-53,-116,-100,-106,-113,-130,-97,-126,-116,-195,-110,-248,-242,-222,-233,-262,-264,-253,-236,-385,-397,-386,-277,-310,-279,-310,-271,-346,-349,-338,-354,-590,-399,-1095,-1092,-1094,-962,-776]} 1. d4 {[%emt 0:00:02]} d5 {[%emt 0:37:02]} 2. Nf3 {[%emt 0:00:49]} Nf6 {[%emt 0:00:08]} 3. g3 {[%emt 0:00:40]} Bf5 {[%emt 0:00:16]} 4. Bg2 {[%emt 0:00:30]} c6 {[%emt 0:00:30]} 5. O-O {[%emt 0:02:12]} Nbd7 {[%emt 0:00:08]} 6. c4 {[%emt 0:01:14] D02: 1 d4 d5 2 Nf3 sidelines, including 2...Nf6 3 g3 and 2...Nf6 3 Bf4.} (6. Nh4 $5 {[%cal Rh4f5]} Be4 7. f3 $11) 6... Bxb1 {[%emt 0:01:17]} (6... e6 $11) 7. Rxb1 $14 {[%emt 0:00:18]} dxc4 {[%emt 0:00:05] [#]} 8. Re1 $146 {[%emt 0:02:18]} ({Better is} 8. b3 $16) ({Predecessor:} 8. Qc2 g6 9. Qxc4 Bg7 10. h3 O-O 11. Be3 Nd5 12. Bd2 N5b6 13. Qc1 e5 14. Bh6 {1-0 (28) Galindo,J (2077)-Kurbanov,D (1971) Dubai 2019}) 8... e6 $11 {[%emt 0:01:05]} 9. a3 {[%emt 0:00:56][%mdl 1024] White has compensation.} b5 {[%emt 0:00:55]} 10. Bf4 {[%emt 0:04:26]} Nd5 {[%emt 0:00:38]} 11. Qd2 {[%emt 0:02:48]} Be7 {[%emt 0:03:37]} 12. e4 {[%emt 0:01:38]} (12. Be5 $15) 12... Nxf4 $17 {[%emt 0:00:56]} 13. Qxf4 {[%emt 0:00:09][%cal Od4d5]} O-O {[%emt 0:00:07]} 14. Rec1 {[%emt 0:01:39]} Qb8 {[%emt 0:01:54]} 15. Qxb8 {[%emt 0:04:42]} Raxb8 {[%emt 0:00:07]} 16. b4 {[%emt 0:10:20]} (16. Rc2 $17) 16... a5 {[%emt 0:01:48]} (16... Nb6 $19 17. Rd1 Rfc8) 17. Rc3 {[%emt 0:13:45] White does not recover from this.} (17. bxa5 $17 Bxa3 18. Rc2) 17... axb4 {[%emt 0:00:23]} 18. axb4 {[%emt 0:00:10]} Ra8 {[%emt 0:00:20]} 19. Re3 {[%emt 0:02:01]} Nb6 {[%emt 0:03:01] Prevents d5.} ({Don't go for} 19... Ra4 $2 20. d5 $19) 20. Ne5 {[%emt 0:15:09]} Rfc8 {[%emt 0:00:09]} 21. d5 {[%emt 0:02:24]} (21. Re2 {was necessary.}) 21... cxd5 $19 {[%emt 0:00:13]} 22. exd5 {[%emt 0:00:07]} exd5 {[%emt 0:00:46]} 23. Nxc4 {[%emt 0:01:53]} bxc4 {[%emt 0:02:33][%cal Bb5c4,Bc4c3,Bc3c2][%mdl 32]} ({Stronger than} 23... Nxc4 24. Rxe7 Kf8 25. Rbe1 $11) 24. Rxe7 {[%emt 0:00:12]} Kf8 {[%emt 0:00:58]} 25. Rb7 {[%emt 0:03:08]} Rab8 {[%emt 0:00:09]} 26. Ra7 {[%emt 0:01:37]} d4 {[%emt 0:01:54][%cal Bd5d4,Bd4d3][%mdl 32]} 27. Kf1 $2 {[%emt 0:01:51]} (27. Re1 c3 28. Bf1) 27... d3 {[%emt 0:00:08] Strongly threatening ...c3.} 28. Bh3 $2 {[%emt 0:03:12] [#]} (28. Be4) 28... c3 $1 {[%emt 0:01:11] Threatens to win with ...c2.} 29. Bxc8 {[%emt 0:11:47]} c2 {[%emt 0:00:08]} ({Not} 29... Nxc8 30. Rd7 d2 31. Rc7 $16) 30. Raa1 {[%emt 0:03:51] Weighted Error Value: White=0.74/Black=0.24 (precise)} 0-1

[Event "15th Arad Open 2022"]
[Site "Arad"]
[Date "2022.08.11"]
[Round "5.20"]
[White "Samu, Sorin-Mihai"]
[Black "Matei-Catruna, Andrei"]
[Result "1-0"]
[ECO "E18"]
[WhiteElo "1952"]
[BlackElo "1338"]
[Annotator "TA"]
[PlyCount "73"]
[EventDate "2022.08.08"]
[EventType "swiss"]
[EventCountry "ROU"]
[SourceTitle "playchess.com"]
[Source "ChessBase"]
[SourceQuality "1"]
[TimeControl "5400+30"]

{[%evp 15,72,17,12,-29,10,0,0,0,5,-22,0,0,4,11,73,72,70,75,66,67,61,59,322,316,361,376,577,588,588,567,780,772,781,783,807,802,1105,1101,1629,1624,1562,1387,29978,5604,29989,29990,29990,29991,29991,29992,29992,29993,29995,29996,29997,29996,29996,29997,29999]} 1. d4 {[%emt 0:10:11]} Nf6 {[%emt 0:00:36]} 2. c4 {[%emt 0:00:09]} e6 {[%emt 0:00:40]} 3. Nf3 {[%emt 0:00:07]} d5 {[%emt 0:00:59]} 4. g3 {[%emt 0:00:25]} Be7 {[%emt 0:01:11]} 5. Bg2 {[%emt 0:00:08]} O-O {[%emt 0:02:10]} 6. O-O {[%emt 0:00:06]} b6 {[%emt 0:02:15]} 7. Nc3 {[%emt 0:00:28]} Bb7 {[%emt 0:01:58]} 8. Ne5 {[%emt 0:00:28] 8.cxd5 is the hot move.} Nbd7 {[%emt 0:05:07]} 9. f4 {[%emt 0:00:27] E18: Queen's Indian: Old Main Line (4 g3 Bb7 5 Bg2 Be7 6 0-0 0-0 7 Nc3).} Bb4 {[%emt 0:03:39] [#]} (9... c5 $5 {[%cal Rc5d4]}) 10. e3 $146 {[%emt 0:01:08]} ({Predecessor:} 10. Bd2 Bxc3 11. Bxc3 Ne4 12. Bxe4 dxe4 13. Nxd7 Qxd7 14. e3 Rad8 15. Qc2 f5 16. Rfd1 c6 {½-½ (45) Matuska,M (2056)-Szatmary,R (1975) Hungary 2016}) 10... Bxc3 {[%emt 0:04:34]} 11. bxc3 {[%emt 0:00:14] The position is equal.} c5 {[%emt 0:02:25]} 12. Ba3 {[%emt 0:00:43]} Rc8 {[%emt 0:08:08]} 13. Qa4 {[%emt 0:00:26]} a6 {[%emt 0:04:56]} 14. Rab1 {[%emt 0:00:16]} Nxe5 {[%emt 0:02:07]} (14... Ba8 $11) 15. fxe5 $16 {[%emt 0:02:45]} Nd7 {[%emt 0:04:17]} 16. cxd5 {[%emt 0:01:41] White is more active.} Bxd5 {[%emt 0:04:50]} 17. Bxd5 {[%emt 0:01:24]} ({But not} 17. Qxa6 $2 Bxg2 18. Kxg2 Ra8 $19) 17... exd5 {[%emt 0:00:14]} 18. Qb3 $1 {[%emt 1:18:24]} ({Don't blunder} 18. Qxa6 $2 Ra8 19. Qb7 Rxa3 $19) 18... c4 $2 {[%emt 0:07:02][%mdl 8192] [#] This move loses the game for Black.} ({Black should play} 18... Qe7 $14) 19. Qd1 $18 {[%emt 0:00:30]} Re8 {[%emt 0:10:37]} 20. Qf3 {[%emt 0:00:30][%csl LRd5,LRf7]} f6 {[%emt 0:06:53]} (20... b5 $142 21. Qxf7+ Kh8 22. Qxd5 Nb6 23. Qxd8 Rcxd8) 21. Qxd5+ {[%emt 0:00:00]} Kh8 {[%emt 0:26:22]} 22. e6 {[%emt 0:01:00]} Nb8 {[%emt 0:00:30]} 23. Qxd8 {[%emt 0:00:30]} Rcxd8 {[%emt 0:00:00]} 24. Rxb6 {[%emt 0:00:30]} h6 {[%emt 0:00:00]} 25. e4 {[%emt 0:00:00]} Rc8 {[%emt 0:00:00]} 26. d5 {[%emt 0:00:00]} Kg8 {[%emt 0:00:00]} 27. Rfb1 {[%emt 0:00:00] [#] aiming for Bd6.} Kh7 {[%emt 0:00:00]} 28. Bd6 {[%emt 0:00:00][%cal Rb6b8]} Kg6 {[%emt 0:00:00]} 29. Rxb8 {[%emt 0:00:00]} Rxb8 {[%emt 0:00:00]} 30. Rxb8 {[%emt 0:00:00] White mates.} Rxb8 {[%emt 0:00:00]} 31. Bxb8 {[%emt 0:00:00] KB-KP} f5 {[%emt 0:00:00]} 32. exf5+ {[%emt 0:00:00]} Kxf5 {[%emt 0:00:00]} 33. e7 {[%emt 0:00:00]} Kf6 {[%emt 0:00:00]} 34. e8=Q {[%emt 0:00:00]} g5 {[%emt 0:00:00]} 35. Qe6+ {[%emt 0:00:00]} Kg7 {[%emt 0:00:00]} 36. Be5+ {[%emt 0:00:00]} Kh7 {[%emt 0:00:00]} 37. Qf7# {[%emt 0:00:00] Weighted Error Value: White=0.06 (flawless) /Black=1.03} 1-0

[Event "15th Arad Open 2022"]
[Site "Arad"]
[Date "2022.08.11"]
[Round "6.1"]
[White "Sedlak, Nikola"]
[Black "Ramoutar, Alan-Safar"]
[Result "0-1"]
[ECO "B10"]
[WhiteElo "2480"]
[BlackElo "2453"]
[Annotator "TA"]
[PlyCount "74"]
[EventDate "2022.08.08"]
[EventType "swiss"]
[EventCountry "ROU"]
[SourceTitle "playchess.com"]
[Source "ChessBase"]
[SourceQuality "1"]
[TimeControl "5400+30"]

{[%evp 11,74,-24,-24,-33,-22,-29,-18,-24,-24,-50,-45,-45,-52,-46,-21,-44,-20,-26,-21,-53,-48,-56,-33,-60,-48,-55,-41,-58,-11,-66,-52,-57,-53,-55,-70,-66,-60,-58,-46,-79,-79,-60,-72,-73,-38,-38,-49,-39,-33,-83,-78,-70,-62,-62,-8,-5,-5,-116,-125,-110,-21,-190,-168,-156,-104]} 1. e4 {[%emt 0:00:08]} c6 {[%emt 0:00:16]} 2. d3 {[%emt 0:00:18]} d5 {[%emt 0:00:41]} 3. Nd2 {[%emt 0:00:12]} e5 {[%emt 0:00:28]} 4. Ngf3 {[%emt 0:00:09]} Bd6 {[%emt 0:00:24]} 5. Be2 {[%emt 0:00:57]} Nf6 {[%emt 0:00:57]} 6. O-O {[%emt 0:01:37]} O-O {[%emt 0:00:27]} 7. b3 {[%emt 0:03:30] B10: Caro-Kann: 2 d3 and 2 c4.} Re8 {[%emt 0:01:21]} 8. Bb2 {[%emt 0:00:09]} a5 {[%emt 0:00:58]} 9. a3 {[%emt 0:00:27] The position is equal.} Nbd7 {[%emt 0:00:39][%cal Bb8d7,Bd7f8,Bf8g6][%mdl 32]} 10. c3 {[%emt 0:04:08]} Nf8 {[%emt 0:02:58]} 11. Re1 {[%emt 0:00:34] [#]} Ng6 $146 {[%emt 0:00:23]} ({Predecessor:} 11... Qc7 12. Bf1 Ng6 13. g3 b6 14. Qc2 Ba6 15. Bg2 Rad8 16. c4 dxe4 17. Nxe4 Nxe4 18. dxe4 Bc8 19. Bc3 Be6 20. Bf1 c5 21. Nd2 {½-½ (21) Schmaltz,R (2390)-Krizsany,L (2345) Lenk 1993}) 12. Bf1 {[%emt 0:00:47]} Bd7 {[%emt 0:01:52]} 13. b4 {[%emt 0:02:22]} Qc7 {[%emt 0:03:00]} 14. Qc2 {[%emt 0:02:01]} b6 {[%emt 0:06:19]} 15. Nb3 {[%emt 0:05:59]} h6 {[%emt 0:01:22]} 16. Rad1 {[%emt 0:07:17]} Rad8 {[%emt 0:02:31]} 17. Bc1 {[%emt 0:02:38]} Bg4 {[%emt 0:05:05] Hoping for ...Bxf3.} 18. Nbd2 {[%emt 0:03:07]} Bc8 {[%emt 0:03:59]} 19. h3 {[%emt 0:00:25]} Ba6 {[%emt 0:01:12]} (19... Be6 $15) 20. c4 {[%emt 0:03:13]} (20. bxa5 $11 bxa5 21. c4) 20... axb4 $15 {[%emt 0:04:15]} 21. cxd5 {[%emt 0:00:25]} cxd5 {[%emt 0:02:32]} (21... bxa3 {is more complex.} 22. dxc6 Ra8 23. Qb3 Nf4) 22. Qxc7 {[%emt 0:00:13]} Bxc7 {[%emt 0:00:06]} 23. axb4 {[%emt 0:00:26]} Nf4 {[%emt 0:05:22]} 24. d4 {[%emt 0:01:17]} Bxf1 {[%emt 0:04:15]} 25. Nxf1 {[%emt 0:01:45]} dxe4 {[%emt 0:06:21] Black is more active.} 26. Nxe5 {[%emt 0:00:28]} N4d5 {[%emt 0:08:38]} 27. Bd2 {[%emt 0:04:46]} Bxe5 {[%emt 0:02:45]} 28. dxe5 {[%emt 0:00:07]} Rxe5 {[%emt 0:00:11]} 29. Bc3 {[%emt 0:01:58]} Ree8 {[%emt 0:01:05]} 30. Bxf6 {[%emt 0:00:46]} ({Better is} 30. Ba1 $15) 30... Nxf6 $17 {[%emt 0:00:11]} ({But not} 30... gxf6 $6 31. Ng3 $11) 31. Ne3 {[%emt 0:53:51]} b5 {[%emt 0:01:51]} 32. Nf5 {[%emt 0:00:00]} Nd5 {[%emt 0:03:32]} (32... Rd5 $15 33. Rxd5 Nxd5) 33. Rd4 $11 {[%emt 0:00:00] [#] And now Red1 would win.} Nc3 {[%emt 0:00:17] Prevents Red1. Threatening ...Rxd4.} 34. Re3 {[%emt 0:00:00]} (34. Nd6 $1 $11) 34... Rxd4 $17 {[%emt 0:00:50]} 35. Nxd4 {[%emt 0:00:00]} Rc8 {[%emt 0:01:51]} (35... Rd8 $17 36. Nb3 Rc8) 36. g4 $2 {[%emt 0:00:00]} (36. Nf5 $1 $11 {and White stays safe.} Rc7 37. Nd6) 36... Rc4 {[%emt 0:00:48]} 37. Nf5 {[%emt 0:00:00]} Nd5 {[%emt 0:01:51] Weighted Error Value: White=0.28 (precise) /Black=0.16 (very precise)} 0-1

[Event "15th Arad Open 2022"]
[Site "Arad"]
[Date "2022.08.11"]
[Round "6.2"]
[White "Secheres, Adrian-Simion"]
[Black "Stanciu, Alexandru-Ovidiu"]
[Result "1/2-1/2"]
[ECO "D37"]
[WhiteElo "2360"]
[BlackElo "2326"]
[Annotator "TA"]
[PlyCount "39"]
[EventDate "2022.08.08"]
[EventType "swiss"]
[EventCountry "ROU"]
[SourceTitle "playchess.com"]
[Source "ChessBase"]
[SourceQuality "1"]
[TimeControl "5400+30"]

{[%evp 15,39,-8,-8,-24,-18,0,0,-19,0,0,0,0,6,0,0,0,0,-1,-5,-60,-14,-51,-31,-17,-6,-51]} 1. d4 {[%emt 0:00:07]} Nf6 {[%emt 0:00:11]} 2. c4 {[%emt 0:00:20]} e6 {[%emt 0:00:54]} 3. Nf3 {[%emt 0:00:56]} d5 {[%emt 0:00:07]} 4. Nc3 {[%emt 0:00:21]} Be7 {[%emt 0:00:10]} 5. Bf4 {[%emt 0:00:30]} O-O {[%emt 0:00:07]} 6. e3 {[%emt 0:00:07]} b6 {[%emt 0:01:01]} 7. Rc1 {[%emt 0:01:04]} c5 {[%emt 0:03:59]} 8. cxd5 {[%emt 0:05:45]} Nxd5 {[%emt 0:03:36]} 9. Nxd5 {[%emt 0:03:28] D37: Queen's Gambit Declined: 5 Bf4.} exd5 {[%emt 0:00:31]} 10. dxc5 {[%emt 0:18:28]} bxc5 {[%emt 0:02:04]} 11. Qd2 {[%emt 0:00:13] Against Qa5} Be6 {[%emt 0:09:16]} 12. Be2 {[%emt 0:03:36]} Nc6 {[%emt 0:05:34]} 13. O-O {[%emt 0:00:42] [#]} h6 $146 {[%emt 0:11:46]} ({Predecessor:} 13... Qb6 14. b3 a5 15. Ne5 Nxe5 16. Bxe5 a4 17. Rb1 axb3 18. axb3 Rfc8 19. Bd3 Bf8 {½-½ (123) Moskalenko,A (2514)-Tang,A (2512) Chess.com INT 2021}) 14. Rfd1 {[%emt 0:02:27]} Qb6 {[%emt 0:00:45]} 15. Ne5 {[%emt 0:06:09]} Bf6 {[%emt 0:04:59]} 16. Nxc6 {[%emt 0:05:30]} Qxc6 {[%emt 0:00:18]} 17. Bf3 {[%emt 0:05:39]} (17. b3 $11) 17... Rfd8 {[%emt 0:00:52]} (17... Rad8 $15 {should be considered.}) 18. Qc2 {[%emt 0:07:56]} Rac8 {[%emt 0:07:49]} (18... g5 $5 19. Bg3 Rac8 $11) 19. e4 {[%emt 0:03:34]} dxe4 {[%emt 0:03:51]} 20. Bxe4 {[%emt 0:01:02] Weighted Error Value: White=0.14 (very precise) /Black=0.12 (very precise)} 1/2-1/2